bitfinex-derivatives/quotes_ETHF0:USTF0_20251204
["timestamp","ask_amount","ask_price","bid_price","bid_amount"]
[1764881254167,3.2078,3133.3,3132.6,3.2078]
[1764881254367,12.751,3133.2,3132.6,3.2078]
[1764881254571,12.751,3133.2,3132.5,1.5916]
[1764881254864,3.2078,3132.9,3132.5,1.59638736]
[1764881256356,12.751,3133.2,3132.5,1.59638736]
[1764881256561,12.751,3133.2,3132.5,5.82359452]
[1764881257369,3.2078,3132.9,3132.5,5.82359452]
[1764881257568,3.2078,3132.9,3132.8,5.2004]
[1764881257765,15.9598,3132.9,3132.8,5.2004]
[1764881257956,3.2078,3133.3,3133.0,1.4539]
[1764881258157,3.2078,3133.3,3133.2,2.5247]
[1764881258368,15.9598,3133.3,3133.2,2.5247]
[1764881258671,15.9598,3133.3,3133.0,3.15640716]
[1764881259068,3.2078,3133.3,3133.2,2.5247]
[1764881259370,15.9598,3133.3,3133.2,2.5247]
[1764881259574,12.752,3133.3,3133.2,2.5247]
[1764881259871,12.752,3133.3,3133.0,3.15640716]
[1764881260469,3.2078,3133.2,3133.0,5.68110716]
[1764881260664,3.2078,3133.2,3133.0,1.4539]
[1764881261459,3.2078,3133.2,3132.8,1.70250716]
[1764881261664,0.69126707,3133.1,3132.5,1.45868736]
[1764881261866,3.2078,3132.6,3132.5,1.45868736]
[1764881262063,15.9598,3132.6,3132.5,1.45868736]
[1764881262468,12.752,3132.6,3132.5,1.45868736]
[1764881262669,12.752,3132.6,3132.5,0.00478736]
[1764881262870,15.9598,3132.6,3132.5,0.00478736]
[1764881263266,15.9598,3132.6,3131.5,3.8634814]
[1764881263470,3.2078,3132.1,3131.5,1.5916]
[1764881263665,0.1596,3131.9,3131.0,1.4539]
[1764881263865,3.2078,3131.4,3131.0,1.4539]
[1764881264669,3.21166862,3131.4,3131.0,1.45642193]
[1764881264974,12.752,3131.3,3131.0,1.45642193]
[1764881265866,12.752,3131.3,3131.2,2.5247]
[1764881266584,3.21166862,3131.4,3131.3,2.5247]
[1764881266872,0.00386862,3131.4,3131.3,5.36003]
[1764881267074,3.2078,3131.8,3131.7,5.2004]
[1764881267969,3.21146684,3131.8,3131.7,5.2004]
[1764881268975,3.21146684,3131.8,3131.5,1.4539]
[1764881269477,3.21146684,3131.8,3131.4,0.00478736]
[1764881269677,3.21146684,3131.8,3131.5,1.3868]
[1764881269880,0.00366684,3131.8,3131.5,1.3868]
[1764881270570,0.00366684,3131.8,3131.4,0.00478736]
[1764881271375,0.00366684,3131.8,3131.5,1.3868]
[1764881271569,15.9628,3131.7,3131.5,1.3868]
[1764881271774,15.9628,3131.7,3131.6,2.2943]
[1764881272082,0.00366684,3131.8,3131.6,2.2943]
[1764881272278,12.755,3131.7,3131.6,4.6669]
[1764881272684,12.755,3131.7,3131.6,4.82651]
[1764881274073,12.755,3131.7,3131.6,2.2943]
[1764881274278,12.755,3131.7,3131.5,1.3868]
[1764881274683,0.00366684,3131.8,3131.5,1.3868]
[1764881274982,3.2078,3131.6,3131.5,3.6811]
[1764881275981,3.2078,3131.6,3131.5,6.0537]
[1764881276482,12.756,3131.7,3131.5,6.0537]
[1764881276679,12.756,3131.6,3131.5,6.0537]
[1764881277482,3.2078,3131.6,3131.5,6.0537]
[1764881277684,15.9638,3131.6,3131.5,6.0537]
[1764881279387,15.9638,3131.6,3131.5,3.6811]
[1764881279788,12.756,3131.6,3131.5,3.6811]
[1764881280387,40.80478736,3132.1,3131.7,4.82651]
[1764881280684,12.756,3132.1,3132.0,6.21329]
[1764881281387,15.9638,3132.1,3132.0,6.21329]
[1764881281681,44.0078,3133.0,3132.5,1.3868]
[1764881281886,12.757,3132.9,3132.8,2.2943]
[1764881282187,12.757,3132.9,3132.5,1.3868]
[1764881282878,12.75955169,3132.9,3132.5,1.3868]
[1764881283788,0.00255169,3132.9,3132.5,1.3868]
[1764881283988,0.00255169,3132.9,3132.8,2.2943]
[1764881284187,12.756,3132.8,3132.7,2.3613]
[1764881284492,12.756,3132.8,3132.5,1.3868]
[1764881285287,12.756,3132.8,3132.7,2.3613]
[1764881285493,12.756,3132.8,3132.5,1.3868]
[1764881285791,12.756,3132.8,3132.7,4.5964]
[1764881286090,12.756,3132.8,3132.5,1.3868]
[1764881287094,3.2078,3132.7,3132.5,1.3868]
[1764881287891,12.755,3132.6,3132.5,1.3868]
[1764881289490,12.755,3132.6,3132.0,1.3868]
[1764881289687,3.2078,3132.2,3132.1,2.3613]
[1764881289883,15.9628,3132.2,3132.1,2.3613]
[1764881291103,15.9628,3132.2,3132.0,1.3868]
[1764881292304,15.9628,3132.2,3132.1,4.5964]
[1764881293097,3.2078,3132.2,3132.1,4.5964]
[1764881293305,15.9628,3132.2,3132.1,4.5964]
[1764881293596,3.2078,3132.2,3132.1,4.5964]
[1764881293903,15.9628,3132.2,3132.1,4.5964]
[1764881294302,15.9628,3132.2,3132.1,4.75599]
[1764881295003,15.9628,3132.2,3132.0,1.3868]
[1764881295004,15.9628,3132.2,3132.0,3.09206912]
[1764881295405,15.9628,3132.2,3132.1,2.3613]
[1764881295603,15.9628,3132.2,3132.0,3.09206912]
[1764881296108,15.9628,3132.2,3132.0,1.3868]
[1764881299407,15.9628,3132.2,3132.1,4.5964]
[1764881300011,0.00255169,3132.9,3132.8,4.75595]
[1764881300201,3.2078,3133.4,3133.3,2.3613]
[1764881300509,3.2078,3133.4,3133.3,4.5964]
[1764881301210,3.21101441,3133.4,3133.3,4.598684]
[1764881305907,0.00321441,3133.4,3133.3,4.758214]
[1764881306708,0.00478736,3133.7,3133.6,4.5964]
[1764881306912,12.75678736,3133.7,3133.6,4.5964]
[1764881307723,0.00725767,3133.7,3133.6,4.5964]
[1764881307915,3.2078,3134.3,3134.2,2.3613]
[1764881308221,12.2138,3134.3,3134.2,2.3613]
[1764881308412,3.2078,3134.3,3134.2,4.75588]
[1764881308922,3.21044199,3134.3,3134.2,4.75588]
[1764881315419,3.21044199,3134.3,3134.0,1.3069]
[1764881315420,3.2078,3135.2,3135.1,4.2464]
[1764881315815,3.2078,3135.2,3135.1,2.1576]
[1764881316526,3.2119182,3135.2,3135.1,2.1576]
[1764881317320,3.2119182,3135.2,3135.1,4.2464]
[1764881317520,3.2119182,3135.2,3135.1,4.40583]
[1764881318114,0.0041182,3135.2,3135.1,4.40583]
[1764881318316,0.00319158,3135.5,3135.4,4.40582]
[1764881319322,0.00661237,3135.5,3135.4,4.40582]
[1764881320318,3.2078,3136.5,3136.4,4.2464]
[1764881320519,0.13994897,3138.0,3137.9,2.1576]
[1764881320730,0.13994897,3138.0,3137.9,4.2464]
[1764881321429,3.2078,3139.2,3139.1,4.2464]
[1764881321628,1.13879948,3141.2,3138.7,0.15925]
[1764881321629,3.2078,3140.3,3139.2,1.133]
[1764881321824,3.2078,3139.8,3139.2,1.133]
[1764881322121,3.2078,3139.8,3139.7,4.2464]
[1764881322327,3.2078,3139.7,3139.3,4.14554191]
[1764881322522,3.2078,3139.7,3139.2,1.133]
[1764881322523,6.41842938,3140.3,3139.2,1.133]
[1764881322724,3.2078,3140.0,3139.8,1.133]
[1764881322927,40.8,3140.2,3139.8,1.133]
[1764881323229,3.2078,3140.1,3139.8,1.133]
[1764881323427,3.2078,3140.1,3140.0,4.2464]
[1764881323631,0.00282938,3140.3,3140.2,4.2464]
[1764881323828,40.80282938,3140.3,3140.2,4.24905198]
[1764881324043,44.01062938,3140.3,3140.2,2.16025198]
[1764881324229,3.21062938,3140.3,3140.2,4.24905198]
[1764881324634,47.21842938,3140.3,3140.2,0.00265198]
[1764881325522,53.21842938,3140.3,3139.3,3.2078]
[1764881325723,53.21842938,3140.3,3139.2,1.133]
[1764881325724,3.2078,3139.7,3139.2,1.133]
[1764881326436,3.2078,3140.0,3139.2,4.3408]
[1764881326633,3.2078,3140.0,3139.2,4.34364017]
[1764881326832,12.808,3139.9,3139.8,1.133]
[1764881327635,12.808,3139.9,3139.2,4.34364017]
[1764881327826,3.2078,3139.6,3139.2,1.13584017]
[1764881329037,12.806,3139.5,3139.2,1.13584017]
[1764881329425,2.43492222,3139.3,3138.8,0.00477958]
[1764881329630,3.2078,3139.0,3138.8,0.00477958]
[1764881330240,16.0138,3139.5,3138.8,0.00477958]
[1764881330441,16.0138,3139.5,3138.8,0.00867377]
[1764881331037,12.808,3139.4,3139.2,1.1884]
[1764881331237,53.608,3139.4,3139.2,1.1884]
[1764881331437,53.608,3139.4,3138.8,0.00867377]
[1764881331833,3.2078,3139.1,3138.8,0.00867377]
[1764881332234,0.15924,3138.9,3138.0,1.133]
[1764881332436,2.43492222,3138.6,3138.0,1.133]
[1764881332635,12.807,3138.5,3138.0,1.133]
[1764881332945,40.8,3138.4,3138.0,1.133]
[1764881333341,40.8,3138.4,3138.0,1.13616859]
[1764881333641,2.59420222,3138.1,3137.4,1.1884]
[1764881333849,5.64272222,3137.5,3136.4,0.15937]
[1764881334047,3.2078,3137.0,3136.4,0.15937]
[1764881334248,3.2078,3137.0,3136.2,4.3962]
[1764881334445,40.8,3136.9,3136.2,4.3962]
[1764881334649,40.80340344,3136.9,3136.8,1.19185239]
[1764881334949,43.23832566,3136.9,3136.2,1.1884]
[1764881335136,3.2078,3136.5,3136.2,1.1884]
[1764881335338,12.806,3136.4,3136.2,1.1884]
[1764881336043,12.806,3136.4,3136.2,1.19251365]
[1764881337649,0.00477958,3136.6,3136.4,2.1243]
[1764881337843,12.806,3136.5,3136.4,2.1243]
[1764881338038,0.00477958,3136.6,3136.2,1.19251365]
[1764881338039,3.21257958,3136.6,3136.2,1.19251365]
[1764881338239,6.42037958,3136.6,3136.2,1.19251365]
[1764881340843,2.43492222,3136.3,3135.6,1.1884]
[1764881341043,3.2078,3135.7,3135.6,1.1884]
[1764881341235,44.0078,3135.7,3135.6,1.1884]
[1764881341437,47.2156,3135.7,3135.6,1.1884]
[1764881341835,47.2156,3135.7,3135.6,1.19098078]
[1764881342647,60.0206,3135.7,3135.6,1.19098078]
[1764881343052,56.8128,3135.7,3135.6,5.39118078]
[1764881343242,53.605,3135.7,3135.6,5.55059078]
[1764881343446,56.8128,3135.7,3135.6,5.55059078]
[1764881343646,56.8128,3135.7,3135.6,3.31528078]
[1764881343849,56.8128,3135.7,3135.6,1.19098078]
[1764881344042,60.0206,3135.7,3135.6,1.19098078]
[1764881344244,60.0206,3135.7,3135.6,0.00258078]
[1764881344939,47.2156,3135.7,3135.6,3.36108078]
[1764881345141,60.0196,3135.7,3135.6,3.36108078]
[1764881345351,60.0196,3135.7,3135.6,0.00258078]
[1764881347552,60.0196,3135.7,3135.6,1.33328078]
[1764881348750,60.0196,3135.7,3135.6,0.00258078]
[1764881348956,47.2156,3135.7,3135.6,0.00258078]
[1764881349252,47.2156,3135.7,3135.6,3.36108078]
[1764881349459,60.0146,3135.7,3135.6,3.36108078]
[1764881349755,60.0146,3135.7,3135.6,1.33328078]
[1764881350549,3.2078,3135.7,3135.6,5.55288078]
[1764881350756,0.00477958,3136.6,3136.1,4.2196]
[1764881350757,3.2078,3136.2,3136.1,4.2196]
[1764881351058,5.8628,3136.2,3136.1,4.2196]
[1764881352251,2.655,3136.2,3135.8,0.1594]
[1764881352851,2.655,3136.2,3136.1,4.2196]
[1764881353060,0.00477958,3136.6,3136.4,2.0278]
[1764881353360,0.00477958,3136.6,3136.5,2.0278]
[1764881353553,3.2078,3136.5,3136.2,1.49008]
[1764881353754,3.2078,3136.5,3136.2,1.3307]
[1764881354765,3.2078,3136.5,3136.4,2.0278]
[1764881355066,3.2078,3136.5,3136.2,1.3307]
[1764881355264,16.0018,3136.5,3136.2,1.3307]
[1764881355858,16.0018,3136.5,3136.4,4.2196]
[1764881357172,3.2078,3136.5,3136.4,4.2196]
[1764881357373,16.0008,3136.5,3136.4,4.2196]
[1764881358368,16.0008,3136.5,3136.4,2.0278]
[1764881358879,16.0008,3136.5,3136.2,1.3307]
[1764881361970,3.2078,3136.3,3135.9,3.2078]
[1764881362167,3.12031836,3136.2,3135.6,1.33328078]
[1764881362379,12.782,3136.1,3135.6,1.33328078]
[1764881362578,40.8,3136.0,3135.6,0.00258078]
[1764881362778,3.89324362,3135.9,3135.6,0.00258078]
[1764881362980,3.2078,3135.9,3135.6,0.00258078]
[1764881363180,0.68622508,3135.8,3135.6,0.00258078]
[1764881363377,12.782,3135.7,3135.6,0.00258078]
[1764881363880,15.9898,3135.7,3135.6,0.00258078]
[1764881364186,56.7898,3135.7,3135.6,0.00258078]
[1764881367579,56.7898,3135.7,3135.6,2.03038078]
[1764881367884,44.0078,3135.7,3135.6,0.00258078]
[1764881368087,56.7808,3135.7,3135.6,0.00258078]
[1764881370480,3.2078,3135.7,3135.6,7.41028078]
[1764881370783,3.2078,3135.7,3135.6,3.21038078]
[1764881370784,15.9778,3135.7,3135.6,3.21038078]
[1764881370982,56.7778,3135.7,3135.6,5.27068078]
[1764881373278,56.7778,3135.7,3135.6,7.44278078]
[1764881373671,3.2078,3136.2,3135.6,3.21038078]
[1764881373979,3.2078,3135.7,3135.6,0.00258078]
[1764881374182,9.2568,3135.7,3135.6,0.00258078]
[1764881374679,50.0568,3135.7,3135.6,0.00258078]
[1764881375586,50.0568,3135.7,3135.2,3.2078]
[1764881376483,50.0568,3135.7,3135.3,0.00833859]
[1764881378290,3.2078,3135.4,3135.3,0.00833859]
[1764881380886,3.2078,3135.4,3135.3,2.24683859]
[1764881381085,3.2078,3135.4,3135.3,4.37543859]
[1764881381479,3.2078,3135.4,3135.3,2.24683859]
[1764881381683,15.9758,3135.4,3135.3,2.24683859]
[1764881381884,15.9758,3135.4,3135.3,4.37543859]
[1764881382086,15.9758,3135.4,3135.3,4.53485859]
[1764881382087,6.11361922,3135.4,3135.3,4.53485859]
[1764881382388,4.583,3136.2,3136.1,4.3671]
[1764881382787,7.71219715,3136.2,3136.1,4.3671]
[1764881383187,7.71219715,3136.2,3136.1,2.2385]
[1764881383188,12.06219715,3136.2,3136.1,2.2385]
[1764881383689,2.1377,3136.0,3135.9,7.5749]
[1764881385289,7.71219715,3136.2,3135.9,3.2078]
[1764881385493,7.71219715,3136.2,3136.1,5.1301]
[1764881386098,10.48659715,3136.2,3136.1,5.1301]
[1764881386396,13.18189715,3136.2,3136.1,5.1301]
[1764881386585,13.18189715,3136.2,3136.1,2.5393]
[1764881387289,3.12919715,3136.2,3136.1,5.1301]
[1764881387485,3.12919715,3136.2,3136.1,5.28948]
[1764881388399,5.90359715,3136.2,3136.1,5.28948]
[1764881390702,8.59889715,3136.2,3136.1,2.69868]
[1764881391399,3.12919715,3136.2,3136.1,5.28948]
[1764881391902,5.90359715,3136.2,3136.1,5.28948]
[1764881392101,5.90359715,3136.2,3136.1,0.15938]
[1764881392102,8.59889715,3136.2,3136.1,0.15938]
[1764881393497,0.00477958,3136.6,3136.5,6.5875]
[1764881393697,1.2103,3137.5,3136.8,5.28945]
[1764881393997,1.5387,3138.5,3137.9,5.28939]
[1764881394195,15.5364,3138.4,3138.3,2.5393]
[1764881394395,12.762,3138.4,3138.3,5.1301]
[1764881394597,18.2317,3138.4,3138.3,2.5393]
[1764881394800,2.7744,3138.2,3138.1,5.28938]
[1764881395000,2.7744,3138.2,3138.1,5.29164992]
[1764881395197,5.4697,3138.2,3138.1,0.00226992]
[1764881395402,5.4697,3137.6,3137.5,3.2078]
[1764881395608,18.2307,3137.6,3137.5,3.2078]
[1764881395909,59.0307,3137.6,3137.5,3.2078]
[1764881396404,59.0307,3137.6,3137.5,3.21145367]
[1764881397311,1.5387,3137.5,3137.0,3.2078]
[1764881397500,7.0084,3137.0,3136.9,0.15934]
[1764881397805,7.0084,3137.0,3136.9,2.69864]
[1764881398108,7.0084,3137.0,3136.9,0.15934]
[1764881398299,7.0084,3137.0,3136.9,0.16287599]
[1764881400001,12.76,3137.1,3137.0,2.5393]
[1764881400203,1.5387,3138.0,3137.0,2.5393]
[1764881400204,2.7744,3138.0,3137.9,5.1301]
[1764881400401,6.45873877,3139.0,3138.6,5.1301]
[1764881400402,1.5387,3139.0,3138.6,5.1301]
[1764881400896,1.5387,3139.0,3138.6,5.28936]
[1764881401102,4.798,3139.4,3138.8,0.15924]
[1764881401408,7.57476479,3139.4,3139.3,2.5393]
[1764881401704,0.00236479,3139.4,3139.3,5.13354945]
[1764881402006,1.5387,3140.0,3139.3,7.12621197]
[1764881402007,5.4697,3140.0,3139.3,7.12621197]
[1764881402210,5.4697,3139.4,3139.3,0.00344945]
[1764881402406,6.844,3139.6,3139.3,2.54274945]
[1764881402609,2.7744,3139.4,3139.3,0.00344945]
[1764881402810,3.21257958,3139.7,3139.6,5.1301]
[1764881402811,7.52477958,3139.7,3139.6,5.1301]
[1764881403009,7.52477958,3139.7,3139.3,0.00344945]
[1764881403010,2.7744,3139.4,3139.3,0.00344945]
[1764881403211,16.20471013,3139.7,3139.3,0.00344945]
[1764881403517,5.47691013,3139.7,3139.3,0.00344945]
[1764881403702,5.47691013,3139.7,3139.6,5.1301]
[1764881403703,0.00721013,3139.7,3139.6,5.1301]
[1764881403899,2.72291013,3139.7,3139.6,2.5393]
[1764881404104,2.7157,3139.4,3139.3,0.00344945]
[1764881404404,5.4834,3139.4,3139.3,0.00344945]
[1764881404608,5.4834,3139.4,3139.3,4.945e-05]
[1764881405409,11.4834,3139.4,3138.3,3.37184958]
[1764881405617,3.2078,3139.0,3138.3,3.37184958]
[1764881405815,12.772,3138.9,3138.4,0.15926]
[1764881406408,2.7157,3138.5,3138.4,0.00321838]
[1764881406713,12.772,3138.9,3138.4,2.78941838]
[1764881407302,12.772,3138.9,3138.4,2.94868838]
[1764881407511,12.772,3138.9,3138.8,2.7862]
[1764881407710,4.823,3139.5,3138.8,2.7862]
[1764881407711,12.772,3139.1,3138.8,2.7862]
[1764881407911,4.823,3139.5,3139.0,2.7862]
[1764881408107,12.773,3139.4,3139.0,2.7862]
[1764881408305,12.773,3139.4,3139.1,3.2078]
[1764881408511,12.772,3139.6,3139.5,2.7862]
[1764881409012,15.4877,3139.6,3139.5,2.7862]
[1764881409417,15.4877,3139.6,3139.1,3.36703]
[1764881409612,2.7157,3139.6,3139.1,3.36703]
[1764881410214,12.77821013,3139.7,3139.5,2.94541]
[1764881410415,0.00721013,3139.7,3139.6,8.6779]
[1764881410616,2.207,3140.2,3139.6,8.83711]
[1764881410812,2.207,3140.2,3140.1,2.7862]
[1764881411008,1.5387,3141.0,3140.1,2.7862]
[1764881411009,44.0078,3140.9,3140.4,2.7862]
[1764881411214,2.7157,3140.5,3140.0,3.36698]
[1764881411417,12.769,3140.8,3140.0,3.36698]
[1764881411418,1.6152,3140.4,3140.0,3.36698]
[1764881411613,5.4834,3140.0,3139.9,0.00477958]
[1764881412014,2.7157,3140.0,3139.9,0.00477958]
[1764881412622,12.769,3140.2,3140.1,5.4701]
[1764881413220,0.00368022,3140.4,3140.1,5.4701]
[1764881413518,0.00368022,3140.4,3140.3,8.6779]
[1764881413714,0.00477958,3140.5,3140.4,5.4701]
[1764881414022,2.72047958,3140.5,3140.4,2.7862]
[1764881414322,2.7157,3140.4,3140.3,3.2078]
[1764881414516,0.00477958,3140.5,3140.4,5.4701]
[1764881414820,4.823,3141.6,3140.4,13.1168]
[1764881415133,53.123,3141.5,3140.7,3.2078]
[1764881415620,0.00477958,3141.4,3140.7,3.21141189]
[1764881415819,12.791,3141.3,3140.7,3.21141189]
[1764881416015,2.7157,3140.8,3140.7,3.21141189]
[1764881416214,5.4834,3140.8,3140.7,0.00361189]
[1764881416412,2.7157,3140.8,3140.7,0.00361189]
[1764881416618,15.9978,3141.2,3140.9,2.7862]
[1764881416814,15.9978,3141.2,3140.7,0.00361189]
[1764881416815,2.7157,3140.8,3140.7,0.00361189]
[1764881417126,5.4834,3140.8,3140.7,0.00361189]
[1764881417423,2.7157,3140.8,3140.7,2.78981189]
[1764881418423,15.9978,3141.2,3140.9,2.7862]
[1764881418624,5.4834,3140.8,3140.7,0.00361189]
[1764881420435,18.2694,3140.8,3140.7,0.00361189]
[1764881422532,7.0986,3140.0,3139.9,3.21257958]
[1764881422833,4.3309,3140.0,3139.9,5.99877958]
[1764881423336,7.0986,3140.0,3139.9,3.21257958]
[1764881423543,7.0986,3140.0,3139.9,3.21623188]
[1764881423724,7.0986,3140.0,3139.1,3.2078]
[1764881423725,1.6152,3139.5,3139.1,3.2078]
[1764881423933,1.6152,3139.5,3139.0,0.15923]
[1764881424934,3.2078,3140.4,3139.8,0.1592]
[1764881425233,3.2078,3140.4,3139.9,0.15919]
[1764881425425,3.2078,3140.4,3140.1,0.15918]
[1764881425630,40.8,3140.3,3140.1,0.15918]
[1764881426024,3.2078,3140.4,3140.1,0.15918]
[1764881427140,3.2078,3141.1,3140.5,0.15916]
[1764881428034,3.21255365,3141.1,3140.5,3.36696]
[1764881428339,3.21255365,3141.1,3140.9,2.7862]
[1764881428531,2.6391,3141.0,3140.9,2.7862]
[1764881429839,3.21255365,3141.1,3141.0,2.7167]
[1764881430139,0.00475365,3141.1,3141.0,2.7167]
[1764881430444,0.00475365,3141.1,3141.0,5.47104]
[1764881430940,11.90809631,3142.0,3141.9,5.47099]
[1764881431136,11.89620392,3142.0,3141.9,14.67879]
[1764881431340,11.54450392,3142.0,3141.9,14.93905911]
[1764881431540,11.54450392,3142.0,3141.9,16.06182163]
[1764881431541,11.20538392,3142.0,3141.9,16.06182163]
[1764881431741,11.20538392,3142.0,3141.9,14.67879]
[1764881431938,11.20873093,3142.0,3141.9,8.68286785]
[1764881432237,1.71223877,3144.4,3143.4,5.3119]
[1764881432434,4.806,3144.6,3142.8,0.9278]
[1764881432435,1.5982,3144.0,3143.8,3.2078]
[1764881432634,5.3134,3143.9,3143.8,3.2078]
[1764881432836,10.09107304,3143.9,3143.8,3.2078]
[1764881433031,2.6391,3143.9,3143.8,3.2078]
[1764881433235,1.5982,3144.6,3144.2,0.15897]
[1764881433538,5.3134,3144.3,3144.2,0.00352958]
[1764881433740,5.2682,3143.7,3143.6,0.00477114]
[1764881434147,4.77767304,3143.7,3143.3,5.3061]
[1764881434445,2.6301,3143.7,3143.4,3.2078]
[1764881434640,2.3012,3144.0,3143.4,3.2078]
[1764881434841,3.2078,3144.7,3143.4,3.2078]
[1764881434842,4.77767304,3143.6,3143.5,5.3061]
[1764881435138,4.77767304,3143.6,3143.5,5.46511]
[1764881435342,0.004743,3143.9,3143.8,5.46509]
[1764881435547,0.004743,3143.9,3143.8,8.67289]
[1764881435742,0.004743,3143.9,3143.8,6.11469]
[1764881436142,0.004743,3143.9,3143.8,8.67289]
[1764881436344,4.78241604,3143.9,3143.8,6.11469]
[1764881436740,2.6301,3143.5,3143.4,3.21119279]
[1764881436948,4.78241604,3143.9,3143.4,5.95909279]
[1764881437351,5.2592,3143.5,3143.4,3.21119279]
[1764881437751,17.5782,3143.5,3143.4,0.00339279]
[1764881438246,23.09667304,3143.5,3143.0,3.2078]
[1764881438452,5.2592,3143.1,3143.0,3.2078]
[1764881438841,10.03687304,3143.1,3143.0,3.2078]
[1764881439052,10.03687304,3143.1,3142.6,3.2078]
[1764881439251,2.6301,3142.7,3142.6,3.2078]
[1764881439453,4.77767304,3143.1,3142.6,5.95924494]
[1764881439652,7.40777304,3142.8,3142.7,0.15905]
[1764881440052,4.77767304,3142.8,3142.7,2.90695]
[1764881440554,4.77767304,3142.8,3142.7,0.15905]
[1764881440748,5.2592,3142.7,3142.6,3.21134494]
[1764881441645,5.2592,3142.7,3142.6,0.00354494]
[1764881443253,5.2592,3142.7,3142.6,4.494e-05]
[1764881444050,2.6301,3142.7,3142.6,3.2078]
[1764881444356,4.77767304,3142.7,3142.6,5.9557]
[1764881444658,4.77767304,3142.7,3142.6,8.5139]
[1764881445051,4.77767304,3142.7,3142.6,8.5161325]
[1764881445441,4.77767304,3142.7,3142.6,5.9579325]
[1764881446051,40.8,3143.2,3142.8,0.15904]
[1764881446250,0.004743,3143.9,3143.4,0.15901]
[1764881446453,7.40777304,3143.8,3143.7,3.2078]
[1764881446758,0.004743,3143.9,3143.8,0.15899]
[1764881446953,10.03687304,3143.8,3143.7,3.2078]
[1764881447550,4.77767304,3143.8,3143.7,5.9557]
[1764881447952,4.77767304,3143.8,3143.7,3.2078]
[1764881448251,8.59477304,3143.8,3143.7,3.2078]
[1764881448454,4.77767304,3143.8,3143.7,3.2078]
[1764881448650,8.59477304,3143.8,3143.7,3.2078]
[1764881448855,4.77767304,3143.8,3143.7,6.8052]
[1764881449060,0.004743,3143.9,3143.8,7.49659]
[1764881450051,8.59951604,3143.9,3143.8,0.15899]
[1764881450253,4.78241604,3143.9,3143.8,7.49659]
[1764881450450,0.004743,3143.9,3143.8,7.49659]
[1764881451750,0.00386118,3144.6,3144.5,7.3376]
[1764881451951,0.00386118,3144.6,3144.5,10.70436]
[1764881453556,2.3012,3145.8,3145.2,0.15892]
[1764881453753,4.77767304,3145.6,3145.4,3.2078]
[1764881453948,7.6378,3145.5,3145.4,3.2078]
[1764881454354,10.8456,3145.5,3144.7,3.2078]
[1764881454557,3.8171,3144.8,3144.7,3.21179026]
[1764881454857,7.6378,3144.8,3144.7,3.21179026]
[1764881455256,7.6378,3144.8,3144.7,0.00399026]
[1764881455747,7.6378,3144.4,3144.3,3.2078]
[1764881455951,3.8171,3144.4,3144.3,3.2078]
[1764881456151,10.675,3145.1,3144.3,6.8052]
[1764881456352,3.8171,3144.4,3144.3,3.36677]
[1764881456659,10.675,3145.1,3144.5,0.15896]
[1764881456865,10.675,3145.1,3144.7,3.2078]
[1764881457066,0.00477114,3145.4,3144.7,3.2078]
[1764881457268,0.00477114,3145.4,3145.1,3.2078]
[1764881457462,3.8171,3145.2,3145.1,3.2078]
[1764881457961,8.59477304,3145.2,3145.1,3.2078]
[1764881458661,4.77767304,3145.2,3145.1,3.36673]
[1764881458862,8.59477304,3145.2,3145.1,3.36673]
[1764881459071,12.41547304,3145.2,3145.1,3.36673]
[1764881460358,12.41547304,3145.2,3145.1,3.2078]
[1764881460558,7.6378,3144.8,3144.7,3.2078]
[1764881460759,3.8171,3144.4,3144.3,3.21129119]
[1764881461066,12.834,3144.9,3144.3,3.21129119]
[1764881461367,12.834,3144.9,3144.7,3.2078]
[1764881461566,2.3025,3145.1,3144.7,3.2078]
[1764881461761,4.77767304,3144.8,3144.7,6.8052]
[1764881461961,4.77767304,3144.8,3144.7,10.70435]
[1764881462154,0.00477114,3145.4,3145.3,3.5974]
[1764881462359,0.00477114,3145.4,3145.3,6.8052]
[1764881462555,4.78244418,3145.4,3145.3,6.8052]
[1764881462764,4.78244418,3145.4,3145.3,3.2078]
[1764881463068,8.59954418,3145.4,3145.3,3.2078]
[1764881464162,4.78244418,3145.4,3145.3,6.9678]
[1764881464469,4.78244418,3145.4,3145.3,10.4903]
[1764881465057,4.78244418,3145.4,3145.3,3.2078]
[1764881465460,11.92654418,3145.4,3144.6,3.36675]
[1764881465659,7.1441,3144.7,3144.6,3.2078]
[1764881465865,2.292,3145.2,3144.6,6.9678]
[1764881466062,4.77767304,3144.7,3144.6,6.9678]
[1764881466456,7.1441,3144.4,3144.3,0.00349119]
[1764881466867,3.5031,3144.4,3144.3,0.00349119]
[1764881467866,7.1441,3144.4,3144.3,0.00349119]
[1764881468256,11.92177304,3144.4,3144.3,0.00349119]
[1764881468462,7.1441,3144.3,3143.7,3.36679]
[1764881468960,10.3519,3144.3,3143.7,3.36679]
[1764881469166,7.1441,3144.3,3143.7,3.36679]
[1764881469366,7.1441,3144.3,3143.7,3.37512811]
[1764881470469,4.77767304,3144.4,3144.1,3.2078]
[1764881470655,7.1441,3144.2,3144.1,3.2078]
[1764881471561,7.1441,3143.8,3143.7,3.21613811]
[1764881472374,3.5031,3143.8,3143.7,3.21613811]
[1764881472874,7.1441,3143.8,3143.7,3.21613811]
[1764881473372,7.1441,3143.8,3143.7,0.00833811]
[1764881476975,9.4361,3143.4,3143.3,3.2078]
[1764881477469,9.4361,3143.4,3143.1,1.11213508]
[1764881477470,2.292,3143.4,3143.1,1.11213508]
[1764881477674,7.1441,3143.2,3143.0,1.11213508]
[1764881477867,7.14715091,3143.2,3143.0,0.00307947]
[1764881478169,3.5031,3143.1,3143.0,0.00307947]
[1764881478374,3.5031,3143.1,3143.0,0.16210947]
[1764881478564,8.28077304,3143.1,3143.0,0.16210947]
[1764881478765,11.92177304,3143.1,3143.0,0.16210947]